Cogmind - Beta 17.1 @@@ ROGUE MODE // 2026.08.31 @ 01:40:57 Player: kway_side Result: Destroyed by S-27 Virus with Autogun Performance ------------- Evolutions (6) 3000 Regions Visited (5) 1000 Robots Destroyed (50) 250 Value Destroyed (2565) 2565 Prototype IDs (16) 320 Alien Tech Used (0) 0 Bonus (1129) 1129 TOTAL SCORE: 8264 Bonus ------- High Alert Combat Kills 329 Registered with UFD 300 Met Optimus in HQ 500 Cogmind --------- Core Integrity 0/1150 Matter 68/300 Energy 100/100 System Corruption 6% Temperature Cool (0) Movement Core (50) Location -4/Factory Parts ------- > --- POWER (2) -------- (None) > --- PROPULSION (5) --- (None) > --- UTILITY (9) ------ (None) > --- WEAPON (3) ------- (None) > --- INVENTORY (5) ---- VSS Leg Myomer Leg Improved Target Analyzer Stasis Canceller Variable Charge Gun Peak State ------------ > --- POWER ------------ Light Angular Momentum Engine Reinforced Fission Core > --- PROPULSION ------- Improved Treads Improved Medium Treads VSS Leg Flexi-carbon Leg Myomer Leg > --- UTILITY ---------- Advanced Heat Sink Huge Storage Unit Active Sensor Suite Improved Targeting Computer Expert System Improved Weapon Cycler Improved Point Defense System > --- WEAPON ----------- KE Penetrator Railgun Railgun > --- INVENTORY -------- Light Nuclear Core Light Antimatter Reactor Improved Fusion Compressor Improved Treads Improved Medium Treads Improved Medium Treads Titanium Leg VSS Leg Improved Heat Sink Advanced Coolant Injector High-capacity Matter Pod Improved Target Analyzer Stasis Canceller Advanced System Shield Tesla Rifle Tesla Rifle Variable Charge Gun Variable Charge Gun Heavy Plasma Cannon Coil Gun Heavy Machine Gun Compact Gauss Rifle KE Penetrator KE Penetrator Lance [Rating: 120] Favorites ----------- Power Ion Engine Engine Ion Engine Power Core Micro Fission Core Reactor Light Antimatter Reactor Propulsion Flexi-carbon Leg Treads Light Treads Leg Flexi-carbon Leg Wheel Armored Huge Wheel Utility Huge Storage Unit Device Active Sensor Suite Storage Huge Storage Unit Processor Expert System Protection Hardened Medium Armor Plating Weapon Mass Driver Energy Gun Small Laser Energy Cannon Heavy Plasma Cannon Ballistic Gun Assault Rifle Ballistic Cannon Mass Driver Launcher Improved Proton Missile Launcher Special Weapon Plasma Cutter Slashing Weapon Axe Piercing Weapon Lance Build | -11 -10 -10 -7 -5 -4 ------- Run | Yrd Mat Sub Scr Fac Fac Slots Evolved 12 | . . . . 10 2 Power 1 | . . . . 1 . Propulsion 3 | . . . . 2 1 Utility 7 | . . . . 6 1 Weapon 1 | . . . . 1 . Parts Attached 72 | . 16 2 9 20 25 Power 8 | . 1 . 1 2 4 Engine 4 | . 1 . 1 1 1 Core 3 | . . . . 1 2 Reactor 1 | . . . . . 1 Propulsion 25 | . 7 . 5 2 11 Treads 7 | . 2 . . 2 3 Leg 15 | . 5 . 2 . 8 Wheel 3 | . . . 3 . . Hover . | . . . . . . Flight . | . . . . . . Utility 19 | . 6 . 1 8 4 Device 10 | . 3 . . 3 4 Storage 3 | . 3 . . . . Processor 3 | . . . . 3 . Hackware . | . . . . . . Protection 3 | . . . 1 2 . Artifact . | . . . . . . Weapon 20 | . 2 2 2 8 6 Energy Gun 3 | . . 1 1 1 . Energy Cannon 1 | . . . . 1 . Ballistic Gun 9 | . 2 . . 2 5 Ballistic Cannon 3 | . . . . 2 1 Launcher 1 | . . . . 1 . Special Weapon 1 | . . 1 . . . Impact Weapon . | . . . . . . Slashing Weapon 1 | . . . 1 . . Piercing Weapon 1 | . . . . 1 . Special Melee Weapon . | . . . . . . Unidentified Prototypes 2 | . . . . 2 . Parts Lost 14 | . . . . . 14 Power 2 | . . . . . 2 Propulsion 5 | . . . . . 5 Utility 3 | . . . . . 3 Weapon 4 | . . . . . 4 Highest Loss Streak 6 | . . . . . 6 To Critical Strikes . | . . . . . . Average Backups 20 | 6 11 21 23 18 21 Power . | 1 1 1 1 . . Propulsion 5 | 4 3 3 5 7 5 Utility 6 | . 4 9 9 1 3 Weapon 7 | 1 2 7 7 8 10 Tool/Special . | . . . . . . Unused Backups 41 | . 4 . 17 1 19 Power 5 | . 2 . . 1 2 Propulsion 3 | . . . 2 . 1 Utility 16 | . 2 . 8 . 6 Weapon 17 | . . . 7 . 10 Tool/Special . | . . . . . . Average Slot Usage (%) 76 | . 95 100 66 77 80 Engine 11 | . 14 14 14 8 4 Treads 4 | . 9 28 . 3 3 Leg 15 | . 17 . 17 7 20 Wheel 3 | . . . 4 4 . Device 7 | . 11 14 . 7 18 Storage 11 | . 14 14 14 5 4 Processor 3 | . . . . 13 9 Protection 7 | . . . 12 6 . Ballistic Gun 6 | . 24 21 . 4 8 Ballistic Cannon 1 | . . . . 3 4 Peak Build Rating 120 | 6 11 12 30 104 120 Average Rating 44 | 6 8 11 21 94 104 On Entrance 27 | 6 6 11 12 30 102 Avg Prop Armor Cover (%) 9 | . . . . 10 3 Naked Turns 109 | . . . . . 109 Heaviest Build 139 | 13 89 91 101 135 139 Greatest Support 106 | 20 40 40 40 28 106 Greatest Overweight (x) 28 | . 3 2 28 4 4 Average Overweight (x) 2 | . . 2 2 3 . Largest Inventory Capacity 25 | 8 25 25 25 25 25 Average Capacity 23 | 8 16 25 25 25 23 Most Carried 25 | 6 21 21 25 25 25 Average Carried 21 | 6 11 21 24 19 21 Final Capacity 25 | 8 25 25 25 25 5 Final Carried 25 | 6 21 21 25 25 5 Class Distribution -------------------- 69% | Mutant 10% | Skirmisher 6% | Gunner 5% | Assassin 4% | Scavenger-Skirmisher Dominant Class ---------------- Mutant | -10/Materials Mutant | -10/Subcaves Mutant | -7/Scraptown Skirmisher | -5/Factory Skirmisher | -4/Factory Resources | -11 -10 -10 -7 -5 -4 ----------- Run | Yrd Mat Sub Scr Fac Fac Matter Collected 2443 | 191 334 . 439 598 881 Remotely . | . . . . . . Salvage Created 2481 | 21 398 . . 1237 825 Parts 108 | 1 18 . . 51 38 Haulers Intercepted 1 | . . . . 1 . Recyclers Shooed 7 | . 2 . . 1 4 Parts Field Recycled . | . . . . . . Retrieved Matter . | . . . . . . Parts Self-Destructed . | . . . . . . Prevented . | . . . . . . Parts Restored . | . . . . . . Kills | -11 -10 -10 -7 -5 -4 ------- Run | Yrd Mat Sub Scr Fac Fac Combat Hostiles Destroyed 41 | . 7 . . 19 15 Guns 20 | . 7 . . 2 11 Cannons 8 | . . . . 5 3 AOE 9 | . . . . 8 1 Classes Destroyed 11 | 1 3 . . 6 1 Builder 2 | . . . . 1 1 Tunneler 1 | 1 . . . . . Hauler 1 | . . . . 1 . Recycler 2 | . 1 . . 1 . Watcher 3 | . 1 . . 1 1 Swarmer 7 | . . . . 4 3 Grunt 16 | . 7 . . 8 1 Brawler 1 | . . . . . 1 Sentry 4 | . . . . 1 3 Hunter 5 | . . . . 2 3 Programmer 8 | . . . . 4 4 Best Kill Streak 5 | 1 3 . . 5 4 Combat Bots Only 5 | . 2 . . 5 4 Max Kills in Single Turn 2 | 1 1 . . 2 2 Gunslinging 1 | . . . . . 1 Exploded 2 | . . . . 2 1 Melee . | . . . . . . Uniques/NPCs Destroyed . | . . . . . . Combat | -11 -10 -10 -7 -5 -4 -------- Run | Yrd Mat Sub Scr Fac Fac Hostile Shots Fired 544 | . 38 14 25 92 375 Missed 184 | . 11 5 4 34 130 Hits 360 | . 27 9 21 58 245 Melee 5 | . . . . . 5 Projectile 355 | . 27 9 21 58 240 AOE 2 | . . . . . 2 Critical Strikes 18 | . 1 1 2 1 13 Damage Taken 6648 | . 346 191 321 1151 4639 Core 1333 | . 36 21 12 111 1153 Absorbed by Shields . | . . . . . . Regen/Repaired (Parts) 356 | . . . 232 124 . Core Remaining (%) 86 | 100 . . 72 88 . Volleys Fired 154 | 3 35 16 . 41 59 Largest 3 | 2 2 2 . 3 3 Hottest 167 | 60 60 65 . 167 138 Shots Fired 339 | 6 66 25 . 86 156 Gun 242 | 6 66 18 . 25 127 Cannon 76 | . . . . 47 29 Launcher 14 | . . . . 14 . Special 7 | . . 7 . . . Kinetic 271 | 3 50 9 . 53 156 Thermal 45 | 3 16 7 . 19 . Explosive . | . . . . . . Electromagnetic 23 | . . 9 . 14 . Robot Hit Streak 13 | 1 11 6 . 13 9 Robot Miss Streak 6 | 2 2 1 . 2 6 Penetration Max 1 | . . . . 1 . Secondary Targets 4 | . 1 . . . 3 Max Gunslinging Chain 1 | . 1 . . . 1 Shots Hit Robots 206 | 1 44 15 1 55 90 Core Hits 106 | 1 21 . . 37 47 Critical Kills . | . . . . . . Critical Parts Destroyed 4 | . 1 . . . 3 Critical Strikes 9 | . 1 . . 4 4 Destroy 4 | . 1 . . . 3 Blast 5 | . . . . 4 1 Melee Attacks 2 | . . . 2 . . Impact . | . . . . . . Slashing 2 | . . . 2 . . Piercing . | . . . . . . Sneak Attacks . | . . . . . . Combat Hostiles . | . . . . . . Follow-up Attacks . | . . . . . . Damage Inflicted 6659 | 10 486 54 43 2967 3099 Guns 2821 | 10 485 52 . 349 1925 Cannons 1732 | . . . . 1141 591 Explosions 2037 | . . . . 1477 560 Melee 43 | . . . 43 . . Ramming 26 | . 1 2 . . 23 Kinetic 4042 | . 376 24 . 1126 2516 Thermal 933 | 10 109 . . 698 116 Explosive 144 | . . . . . 144 Electromagnetic 1471 | . . 28 . 1143 300 Impact . | . . . . . . Slashing 43 | . . . 43 . . Piercing . | . . . . . . Highest Corruption 6 | . 1 1 1 3 6 Average Corruption 1 | . 1 1 1 2 4 Corruption Purged . | . . . . . . Corruption Blocked . | . . . . . . Effects 72 | . 4 3 34 6 25 Message Errors 17 | . 1 1 7 3 5 Matter Fused 20 | . 1 2 12 1 4 Heat Flow Errors 8 | . . . 5 . 3 Energy Discharges 10 | . 1 . 4 . 5 Parts Fused 1 | . . . 1 . . Data Loss (minor) 5 | . 1 . 2 1 1 Data Loss (major) 7 | . . . 2 1 4 Misfires 1 | . . . . . 1 Alerts 3 | . . . 1 . 2 Overload Shots . | . . . . . . Overflow Damage 167 | . . . . 167 . Projectiles 6 | . . . . 6 . Explosions 161 | . . . . 161 . Melee . | . . . . . . Knockbacks 8 | . . . . 5 3 Impact . | . . . . . . Kinetic 8 | . . . . 5 3 Secondary . | . . . . . . Self-Inflicted Damage 71 | . . . . 61 10 Shots 4 | . . . . 4 . Rammed 7 | . . 1 . . 6 Targets Rammed 9 | . 1 1 . . 7 Kicked 2 | . 1 . . . 1 Crushed . | . . . . . . Highest Temperature 333 | . 48 . 264 333 209 Average Temperature 86 | . 24 . 92 152 30 Received Heat Transfer 896 | . 219 54 194 198 231 Effects 2 | . . . . 2 . Shutdowns 2 | . . . . 2 . Siege Activations . | . . . . . . Martial Activations . | . . . . . . Shielding Activations . | . . . . . . Robots Disrupted . | . . . . . . Combat Hostiles . | . . . . . . Robots Corrupted 4 | . . . . 4 . Combat Hostiles 4 | . . . . 4 . Parts Fried 7 | . . . . 5 2 Impact Corruptions . | . . . . . . Robots Melted . | . . . . . . Combat Hostiles . | . . . . . . Parts Melted . | . . . . . . Heat Transferred 1249 | 25 250 . . 874 100 Parts Sabotaged . | . . . . . . Parts Stolen . | . . . . . . Parts Stripped . | . . . . . . Power Chain Reactions 3 | . . . . 3 . Alert | -11 -10 -10 -7 -5 -4 ------- Run | Yrd Mat Sub Scr Fac Fac Maximum Alert Level 4 | . . . . 2 4 Low Security (%) 56 | 100 100 . . 73 5 Level 1 12 | . . . . 4 30 Level 2 22 | . . . . 21 41 Level 3 7 | . . . . . 19 Level 4 1 | . . . . . 4 Level 5 . | . . . . . . High Security . | . . . . . . Max Security . | . . . . . . Peak Influence 1189 | 5 50 . . 695 1189 Initial 336 | . . . . . 336 Average 251 | . 6 . . 169 525 Influence Increases 2742 | 5 196 . . 989 1552 Destroy 0b10 Robot/C 840 | . 140 . . 400 300 Destroy 0b10 Robot/NC 50 | 5 10 . . 25 10 Destroy Leader 188 | . 32 . . 84 72 Successful Hack 50 | . 14 . . 36 . Disable Machine 225 | . . . . 30 195 Anti-Garrison Action 150 | . . . . . 150 Destroy Structure 224 | . . . . 84 140 Partial Spotted 15 | . . . . 15 . Lose Combat Pursuer 300 | . . . . 15 285 Active Sensor Use 700 | . . . . 300 400 Influence Decreases 1556 | 5 196 . . 302 1053 Entered New Map 351 | . . . . . 351 Time Decay 1025 | 5 196 . . 262 562 Lost Part 140 | . . . . . 140 Lost Ally 40 | . . . . 40 . Squads Dispatched 20 | . . . . 9 11 Investigation 8 | . . . . 4 4 Extermination 6 | . . . . 3 3 Reinforcement 4 | . . . . 2 2 Assault 2 | . . . . . 2 Garrison . | . . . . . . Intercept . | . . . . . . Searches Triggered . | . . . . . . Construction Impeded 2 | . . . . 2 . Haulers Reinforced . | . . . . . . Active Scanning Responses 7 | . . . . 3 4 Cargo Convoy Interrupts . | . . . . . . Stealth | -11 -10 -10 -7 -5 -4 --------- Run | Yrd Mat Sub Scr Fac Fac Distress Signals 5 | . 3 . . . 2 Communications Jammed . | . . . . . . Distress Signals . | . . . . . . Times Spotted 99 | . 14 1 5 24 55 Peak Tracking Total 13 | . 4 1 4 5 13 Tactical Retreats 8 | . . . . 1 7 Traps | -11 -10 -10 -7 -5 -4 ------- Run | Yrd Mat Sub Scr Fac Fac Traps Triggered 7 | . 4 . . 2 1 Indirectly . | . . . . . . Trap Hack Attempts . | . . . . . . Triggered . | . . . . . . Disarmed . | . . . . . . Reprogrammed . | . . . . . . Reused . | . . . . . . Traps Extracted . | . . . . . . Installed . | . . . . . . Triggered . | . . . . . . Machines | -11 -10 -10 -7 -5 -4 ---------- Run | Yrd Mat Sub Scr Fac Fac Machines Disabled 17 | . . . 1 2 14 Max in Single Turn 4 | . . . 1 1 4 Garrison Access 1 | . . . . . 1 Machines Repaired . | . . . . . . Machines Dismantled . | . . . . . . Machines Sabotaged . | . . . . . . Overloaded Fab Kills . | . . . . . . Hacking | -11 -10 -10 -7 -5 -4 --------- Run | Yrd Mat Sub Scr Fac Fac Machines Accessed 16 | . 6 . 4 5 1 Terminals 7 | . 5 . . 2 . Fabricators 1 | . . . . . 1 Repair Stations 1 | . . . . 1 . Recycling Units 2 | . 1 . . 1 . Scanalyzers . | . . . . . . Garrison Access 1 | . . . . 1 . Total Hacks 30 | . 13 . 7 9 1 Successful 18 | . 6 . 7 5 . Failed 12 | . 7 . . 4 1 Catastrophic 4 | . 2 . . 1 1 Database Lockouts . | . . . . . . Manual 18 | . 13 . . 5 . Terminals 14 | . 11 . . 3 . Fabricators 1 | . . . . . 1 Repair Stations 2 | . . . . 2 . Recycling Units 4 | . 2 . . 2 . Scanalyzers . | . . . . . . Garrison Access 2 | . . . . 2 . Terminal Hacks 8 | . 1 . 7 . . Record 6 | . . . 6 . . Robot Analysis 1 | . 1 . . . . Proto ID Catalog 1 | . . . 1 . . Fabricator Hacks . | . . . . . . Repair Station Hacks 2 | . . . . 2 . Scan Component 1 | . . . . 1 . Repair 1 | . . . . 1 . Recycling Unit Hacks 3 | . 2 . . 1 . Report Inventory 3 | . 2 . . 1 . Scanalyzer . | . . . . . . Garrison Access Hacks . | . . . . . . Unauthorized Hacks 5 | . 3 . . 2 . Terminals 3 | . 3 . . . . Assimilate 1 | . 1 . . . . Skim 2 | . 2 . . . . Fabricators . | . . . . . . Repair Stations . | . . . . . . Recycling Units . | . . . . . . Scanalyzers . | . . . . . . Garrison Access 2 | . . . . 2 . Decoy 1 | . . . . 1 . Reprogram 1 | . . . . 1 . Data Cores Recovered . | . . . . . . Used . | . . . . . . Hacking Detections 12 | . 6 . . 5 1 Full Trace Events 1 | . 1 . . . . Feedback Events 1 | . 1 . . . . Corruption 1 | . 1 . . . . Feedback Blocked . | . . . . . . Robot Schematics Acquired . | . . . . . . Robots Built . | . . . . . . Authchips . | . . . . . . Time . | . . . . . . Total Robot Build Rating . | . . . . . . Part Schematics Acquired . | . . . . . . Parts Built . | . . . . . . Authchips . | . . . . . . Time . | . . . . . . Total Part Build Rating . | . . . . . . Part Studies Acquired . | . . . . . . Parts Repaired 1 | . . . . 1 . Time 44 | . . . . 44 . Parts Recycled . | . . . . . . Recycled Matter . | . . . . . . Retrieved Matter . | . . . . . . Retrieved Components . | . . . . . . Parts Scanalyzed . | . . . . . . Part Schematics Acquired . | . . . . . . Parts Damaged . | . . . . . . Bothacking | -11 -10 -10 -7 -5 -4 ------------ Run | Yrd Mat Sub Scr Fac Fac Used RIF Installer . | . . . . . . Robots Hacked . | . . . . . . Non-combat . | . . . . . . Combat . | . . . . . . Robot Hacks Applied . | . . . . . . Relay Couplers Released 4 | . . . . . 4 Programmers 4 | . . . . . 4 Fabnet Peak Effective % . | . . . . . . Robots Rewired . | . . . . . . Allies Hacked . | . . . . . . Hacks Repelled . | . . . . . . Allies | -11 -10 -10 -7 -5 -4 -------- Run | Yrd Mat Sub Scr Fac Fac Total Allies 2 | . . . . 2 . Largest Group 2 | . . . . 2 . Highest-Rated Group 108 | . . . . 108 . Highest-Rated Ally 54 | . . . . 54 . Initial UFD Resources 43 | . . . . 39 43 Total Orders . | . . . . . . Ally Attacks 4 | . . . . 4 . Total Damage 153 | . . . . 153 . Kills 2 | . . . . 2 . Allies Corrupted . | . . . . . . Allies Melted 3 | . . . 3 . . Intel | -11 -10 -10 -7 -5 -4 ------- Run | Yrd Mat Sub Scr Fac Fac Active Infowar (turns) 2904 | . . . . 1463 1441 A.S.S. 2904 | . . . . 1463 1441 Robot Analysis Total 1 | . 1 . . . . Derelict Logs Recovered 1 | . . 1 . . . Drone Launches . | . . . . . . Drone Recoveries . | . . . . . . Exploration | -11 -10 -10 -7 -5 -4 ------------- Run | Yrd Mat Sub Scr Fac Fac Turns Passed 9740 | 49 1325 519 4711 1466 1670 Spaces Moved 4238 | 34 542 145 2006 788 723 Core 202 | . 1 . 1 . 200 Treads 379 | . 131 145 18 . 85 Legs 2008 | 34 410 . 1136 . 428 Wheels 1649 | . . . 851 788 10 Hover . | . . . . . . Flight . | . . . . . . Fastest Speed 50 | 120 120 320 135 145 50 Average Speed 195 | 120 201 320 215 157 157 Slowest Speed 1450 | 120 320 320 1450 160 240 Overloaded Moves . | . . . . . . Propulsion Burnouts . | . . . . . . Robots Hopped . | . . . . . . Potential Cave-ins . | . . . . . . Cave-ins Triggered . | . . . . . . Exploration Rate (%) 37 | 4 74 11 95 19 19 Regions Visited 5 Branch Regions 2 Pre-discovered Areas 1 | . . . 1 . . Known Exits Taken 1 | . . . . 1 . Unknown Exits Taken 4 | 1 1 1 1 . . Scrap Searched 7 | . . . 7 . . Spaces Dug . | . . . . . . Terrain Destroyed 106 | . . . . 40 66 Melee . | . . . . . . Projectile 46 | . . . . 18 28 AOE 60 | . . . . 22 38 Terrain Rammed . | . . . . . . Walls Destroyed . | . . . . . . Machines Disabled . | . . . . . . Actions | -11 -10 -10 -7 -5 -4 --------- Run | Yrd Mat Sub Scr Fac Fac Total 5421 | 36 711 167 2409 935 1163 Wait 765 | . 89 4 316 48 308 Move 4233 | 33 541 144 2005 787 723 Hop . | . . . . . . Pick Up 86 | . 18 . 31 18 19 Fast Attach 21 | . 5 . 5 3 8 Attach 33 | . 5 . 2 13 13 Detach 8 | . 1 . 5 . 2 Swap 36 | . 9 2 4 9 12 Drop 64 | . 7 . 37 8 12 Fire 154 | 3 35 16 . 41 59 Melee 2 | . . . 2 . . Ram 6 | . . . . . 6 Kick 2 | . 1 . . . 1 Crush 1 | . . 1 . . . Escape Stasis 8 | . . . . 8 . Rewire 2 | . . . 2 . . Trap . | . . . . . . Miscellaneous . | . . . . . . Route ------- -11/Scrapyard -10/Materials (discovered 5 exits: [*Mat x3] / [*Min] / [*Sub]) -10/Subcaves -7/Scraptown (discovered 2 exits: *Fac x2) -5/Factory -4/Factory History --------- Turn | Location | Event 1 | -11/Scrapyard | Discovered new exit (range 3) 50 | -11/Scrapyard | Entered Materials 66 | -10/Materials | Discovered new exit (range 11) 281 | -10/Materials | Discovered new exit (range 9) 341 | -10/Materials | Build established: Mutant 695 | -10/Materials | Discovered new exit (range 4) 1068 | -10/Materials | Discovered new exit (range 14) 1343 | -10/Materials | Discovered new exit (range 10) 1375 | -10/Materials | Entered Subcaves 1376 | -10/Subcaves | Approached by a straggling Scientist 1808 | -10/Subcaves | Learned location of 1 exit from Materials 1829 | -10/Subcaves | Disturbed a concealed Subdweller 1894 | -10/Subcaves | Entered Scraptown 2350 | -7/Scraptown | Heard Great Nut preacher, LISTEN AND RECITE! 2807 | -7/Scraptown | Discovered new exit (range 7) 3028 | -7/Scraptown | Visited Symbiants 3112 | -7/Scraptown | Visited Assassins FH 3886 | -7/Scraptown | Visited Junk Repository 4059 | -7/Scraptown | Visited TADAMA 4137 | -7/Scraptown | Visited CR-KLE's Repair Center 4155 | -7/Scraptown | CR-KLE repaired 3 parts 4187 | -7/Scraptown | Visited IN-MT5's Study 4688 | -7/Scraptown | Visited UFD Registry 4688 | -7/Scraptown | Registered with UFD as "Gaussbot" 4800 | -7/Scraptown | Visited Infowarlord's Domain 4817 | -7/Scraptown | Found Active Sensor Suite 4879 | -7/Scraptown | Visited Chapter 10 4981 | -7/Scraptown | Visited Science Guys 5108 | -7/Scraptown | Visited DA-N13 Charitable Foundation 5134 | -7/Scraptown | Found DCF Scrap (30 items) 5288 | -7/Scraptown | Visited Research Penetration Think Tank 5319 | -7/Scraptown | Visited A0-MCA Data Center 5330 | -7/Scraptown | Given a B- rating by A0-MCA 5337 | -7/Scraptown | Found A0-MCA's Component Scanner 5377 | -7/Scraptown | Visited Derelict Rescue Squad 5390 | -7/Scraptown | Found DRS Beacon 5422 | -7/Scraptown | Visited LU-1G1's Boring Crew 5492 | -7/Scraptown | Visited Scrap Suit Storage 5898 | -7/Scraptown | Visited Curators Association 6023 | -7/Scraptown | Discovered new exit (range 3) 6116 | -7/Scraptown | Met Optimus 6116 | -7/Scraptown | Accepted into 0bPrime 6516 | -7/Scraptown | Civil war broke out across Scraptown 6543 | -7/Scraptown | Found Prototype Processor 6605 | -7/Scraptown | Entered Factory 6605 | -5/Factory | Evolved 10 slots: Power x1, Propulsion x2, Utility x6, Weapon x1 6608 | -5/Factory | Identified Expert System 6618 | -5/Factory | Lost 9 allies 6824 | -5/Factory | Repaired Arm. Huge Wheel 7476 | -5/Factory | Build established: Skirmisher 7923 | -5/Factory | Discovered new exit (range 4) 7928 | -5/Factory | Identified exit to Factory 8071 | -5/Factory | Entered another Factory area 8071 | -4/Factory | Evolved 2 slots: Propulsion x1, Utility x1 8290 | -4/Factory | Build established: Gunner 8610 | -4/Factory | Lost 3 parts (1p1n1u) 8687 | -4/Factory | Lost 6 parts (1p1n1u3w) 8968 | -4/Factory | Build established: Skirmisher 9345 | -4/Factory | Expert System configures itself against Swarmer targets 9424 | -4/Factory | Build established: Scavenger-Skirmisher 9632 | -4/Factory | Released all parts (13) 9673 | -4/Factory | Core integrity fell below 50% 9699 | -4/Factory | Core integrity fell below 20% 9741 | -4/Factory | Destroyed by S-27 Virus with Autogun Last Messages --------------- 09658_ K-01 Serf cleans the Terminal. 09668_ C-45 Heavy ARC bursts open, deploying its payload. 09668_ G-73 Enforcer unfolds itself. 09668_ G-67 Veteran unfolds itself. 09668_ I-47 Archangel unfolds itself. 09668_ Penetrated by Slug. 09668_ Slug penetrates Wall. 09668_ Penetrated by Slug. 09669_ System corrupted: Matter fused (-5). 09669_ Terminal disabled. 09669_ K-01 Serf cleans the Terminal. 09671_ Construction Platform disabled. 09671_ Penetrated by Slug. 09672_ Slug penetrates Construction Platform. 09672_ I-47 Archangel suffers critical hit (Destroy). 09678_ Slug penetrates Construction Platform. 09686_ Knocked back. 09721_ Slammed into K-01 Serf. 09722_ Slammed into U-05 Engineer. 09723_ Slammed into R-10 Processor. Map ----- +----------------------------------------------------+ | ????????????????? # #?????????????? | | ??????????????????# # """ """??????????????? | | ??????????????????# # """ """??????????????? | | ??????????????????# + """ "??????????????? | | ??????????????????# # "F"??????????????? | | ??????????????????# # """??????????????? | | ??????????????????# # #?????????????? | | ??????????????????# ###+##########?????????????? | | ??????????????????# #? #????????????????????? | | ??????????????????# # ### ????????????????? | | ??????????????????# # " ??????????????????? | | ??????????????????# # #????????????????????? | | ??????????####+#### # #????????????????????? | | ????????# + #?????????????????????? | | ????????# # s #?????????????????????? | | ????????# """ """ # +?????????????????????? | | ????????? """ """?# #?????????????????????? | | ??????????""" """?#s #?????????????????????? | | ???????????"" "??#ss #?????????????????????? | | ????????????? "??# #?????????????????????? | | ????????????? ????# #?????????????????????? | | ????????????#?????# #?????????????????????? | | ??????????????????# #?????????????????????? | | ??????????????????+ #########?????????????? | | ??????????????????# ???????????? | | ??????????????????# @ #######???????????????? | | ??????????????????######+###?????????????????????? | | ?????????????????????? ??????????????????????? | | ???????????????????? ????????????????????? | | ??????????????????# """" """" ??????????????????? | | ??????????????????# """" """" #?????????????????? | | ??????????????????# """" """" #?????????????????? | | ??????????????????# """" """" #?????????????????? | | ??????????????????#???"" ""??? #?????????????????? | | ???????????????????????" "???????????????????????? | | ???????????????????????" "???????????????????????? | | ??????????????????????? ???????????????????????? | | ???????????????????????? ????????????????????????? | | ???????????????????????? ????????????????????????? | | ????????????????????????#????????????????????????? | | ?????????????????????????????????????????????????? | | | | | | | | | | | | | | | | | | | +----------------------------------------------------+ Best States ------------- Heat Dissipation 65 Energy Generation 35 Energy Capacity 480 Matter Stores 300 Matter Capacity 350 Sight Range 16 Robot Scan Range 20 Terrain Scan Density 10 Armor Coverage 375 Point Defense Rating 160 Weapon Cycling 20 Evasion (%) 55 Targeting Accuracy 6 Recoil Reduction 4 Kinecelleration 40 Item Schematics ----------------- None Robot Schematics ------------------ None Fabricated ------------ Nothing Repaired ---------- Arm. Huge Wheel | 50% | -5/Factory Studied --------- None Alien Tech Used ----------------- None Achievements -------------- Some Acronyms Are Better Than Others Challenges ------------ None Game ------ Seed TachyonSiegeExpander Manual? 0 Play Time 01:29:13 Cumulative 169.4 hours Start 2026.08.30 @ 22:21:14 End 2026.08.31 @ 01:40:57 Sessions 1 Manual Loads 0 Difficulty Rogue Special Mode None Game No. 154 Rogue 154 Adventurer 0 Explorer 0 Win Type - Total 0 Types 0/0/0/0/0/0/0/0/0/0 Lore% 40 Gallery% 39 Achievement% 28 Wizard Run 0 Options --------- Layout 0 ASCII 0 Keyboard 0 Movement Numpad Keybinds 0 Fullscreen 1 Font 18/SmallcapsGlow Map View 76x50 Zoom Use 0% Tactical HUD 1 Map Filters NONE Filters NONE Steam 1 RUN: 0172c1a5-bee2-4dc4-9d93-704585970ca3